fUST/lending_fUST_20241203
["ID","MTS","AMOUNT","RATE_DAILY","PERIOD"]
[344009719,1733190633624,-500.0,0.00028219,7]
[344009720,1733190633633,-423.40024955,0.00028219,7]
[344009721,1733190633643,-280.71465637,0.00028219,7]
[344009722,1733190633652,-500.0,0.00028219,7]
[344009723,1733190633662,-500.0,0.00028219,7]
[344009724,1733190633671,-500.0,0.00028219,7]
[344009725,1733190633681,-500.0,0.00028219,7]
[344009726,1733190633691,-500.0,0.00028219,7]
[344009727,1733190633701,-500.0,0.00028219,7]
[344009728,1733190633711,-500.0,0.00028219,7]
[344009729,1733190633722,-182.93341813,0.00028219,7]
[344009730,1733190633732,-801.55,0.00028219,7]
[344009731,1733190633744,-500.0,0.00028219,7]
[344009732,1733190633754,-168.0,0.00028219,7]
[344009733,1733190633764,-500.0,0.00028219,7]
[344009734,1733190633774,-500.0,0.00028219,7]
[344009735,1733190633784,-500.0,0.00028219,7]
[344009736,1733190633794,-500.0,0.00028219,7]
[344009737,1733190633803,-1900.07,0.00028219,7]
[344009738,1733190633813,-334.31796617,0.00028219,7]
[344009739,1733190633824,-500.0,0.00028219,7]
[344009740,1733190633834,-1498.9,0.00028219,7]
[344009741,1733190633844,-542.42,0.00028219,7]
[344009742,1733190633853,-582.04759453,0.00028219,7]
[344009743,1733190633863,-3799.54,0.00028219,7]
[344009744,1733190633873,-2534.82,0.00028219,7]
[344009745,1733190633883,-500.0,0.00028219,7]
[344009746,1733190633893,-576.52,0.00028219,7]
[344009747,1733190633903,-500.0,0.00028219,7]
[344009748,1733190633912,-500.0,0.00028219,7]
[344009749,1733190633922,-500.0,0.00028219,7]
[344009750,1733190633931,-584.51,0.00028219,7]
[344009751,1733190633941,-510.76,0.00028219,7]
[344009752,1733190633951,-500.0,0.00028219,7]
[344009753,1733190633961,-962.08,0.00028219,7]
[344009754,1733190633971,-500.0,0.00028219,7]
[344009755,1733190633981,-500.0,0.00028219,7]
[344009756,1733190633993,-500.0,0.00028219,7]
[344009757,1733190634004,-1061.46,0.00028219,7]
[344009758,1733190634014,-500.0,0.00028219,7]
[344009759,1733190634024,-500.0,0.00028219,7]
[344009760,1733190634034,-500.0,0.00028219,7]
[344009761,1733190634044,-500.0,0.00028219,7]
[344009762,1733190634055,-1000.0,0.00028223,2]
[344009763,1733190634065,-813.4115378,0.00028235,2]
[344009764,1733190634075,-1000.0,0.00028249,2]
[344009765,1733190634084,-1000.0,0.00028254,2]
[344009766,1733190634095,-170.29713084,0.00028273,2]
[344009767,1733190634105,-1000.0,0.00028277,2]
[344009768,1733190634116,-1000.0,0.00028324,2]
[344009769,1733190634126,-1000.0,0.00028338,2]
[344009770,1733190634135,-500.0,0.00028399,2]
[344009771,1733190634145,-500.0,0.00028399,2]
[344009772,1733190634155,-500.0,0.00028399,2]
[344009773,1733190634164,-500.0,0.00028399,2]
[344009774,1733190634174,-500.0,0.00028399,2]
[344009775,1733190634184,-500.0,0.00028399,2]
[344009776,1733190634194,-447.73505949,0.00028399,2]
[344009777,1733190634203,-287.32757055,0.00028399,2]
[344009778,1733190634213,-208.86152315,0.00028399,2]
[344009779,1733190634222,-33000.0,0.000284,2]
[344009780,1733190634232,-1027.78872427,0.000284,2]
[344009781,1733190634243,-1005.68595578,0.00028423,2]
[344009782,1733190634252,-170.15282029,0.00028473,5]
[344009783,1733190634262,-500.0,0.00028493,7]
[344009784,1733190634272,-500.0,0.00028493,7]
[344009785,1733190634281,-500.0,0.00028493,7]
[344009786,1733190634291,-327.15338791,0.00028493,7]
[344009790,1733190638521,-172.84661209,0.00028493,7]
[344009791,1733190638530,-500.0,0.00028493,7]
[344009792,1733190638539,-500.0,0.00028493,7]
[344009793,1733190638548,-500.0,0.00028493,7]
[344009794,1733190638557,-226.14229461,0.00028493,7]
[344009795,1733190638568,-273.85770539,0.00028493,7]
[344009796,1733190638577,-500.0,0.00028493,7]
[344009797,1733190638586,-500.0,0.00028493,7]
[344009798,1733190638595,-500.0,0.00028493,7]
[344009799,1733190638604,-500.0,0.00028493,7]
[344009800,1733190638613,-801.55,0.00028493,7]
[344009801,1733190638622,-500.0,0.00028493,7]
[344009802,1733190638632,-168.0,0.00028493,7]
[344009803,1733190638641,-500.0,0.00028493,7]
[344009804,1733190638649,-500.0,0.00028493,7]
[344009805,1733190638658,-562.53251759,0.00028493,7]
[344009806,1733190638667,-500.0,0.00028493,7]
[344009807,1733190638676,-1900.07,0.00028493,7]
[344009808,1733190638685,-523.09171141,0.00028493,7]
[344009809,1733190638694,-1498.9,0.00028493,7]
[344009810,1733190638703,-542.42,0.00028493,7]
[344009811,1733190638712,-3799.54,0.00028493,7]
[344009812,1733190638721,-2534.82,0.00028493,7]
[344009813,1733190638730,-500.0,0.00028493,7]
[344009815,1733190638739,-576.52,0.00028493,7]
[344009817,1733190638751,-500.0,0.00028493,7]
[344009818,1733190638760,-500.0,0.00028493,7]
[344009819,1733190638769,-500.0,0.00028493,7]
[344009820,1733190638778,-460.6613618,0.00028493,7]
[344009854,1733190641771,-123.8486382,0.00028493,7]
[344009855,1733190641781,-510.76,0.00028493,7]
[344009856,1733190641791,-500.0,0.00028493,7]
[344009857,1733190641800,-962.08,0.00028493,7]
[344009858,1733190641810,-500.0,0.00028493,7]
[344009859,1733190641820,-500.0,0.00028493,7]
[344009860,1733190641831,-500.0,0.00028493,7]
[344009861,1733190641840,-1061.46,0.00028493,7]
[344009862,1733190641850,-500.0,0.00028493,7]
[344009863,1733190641860,-500.0,0.00028493,7]
[344009864,1733190641870,-500.0,0.00028493,7]
[344009865,1733190641879,-500.0,0.00028493,7]
[344009866,1733190641888,-233.71849396,0.00028499,2]
[344009867,1733190641899,-156.59022607,0.00028499,2]
[344009868,1733190641908,-401.20787647,0.00028499,2]
[344009869,1733190641917,-21066.94020108,0.000285,5]
[344009870,1733190642143,-435.15,0.0002849,10]
[344009871,1733190642153,-18162.22183013,0.000285,5]
[344009872,1733190642165,-363.29652371,0.000285,5]
[344009886,1733190643506,-53385.22878092,0.000285,5]
[344009888,1733190643517,-12099.45694856,0.000285,5]
[344009889,1733190643529,-1000.0,0.000285,5]
[344009903,1733190646624,-500.0,0.00028218,2]
[344009904,1733190646634,-500.0,0.00028218,2]
[344009905,1733190646643,-500.0,0.00028218,2]
[344009906,1733190646654,-500.0,0.00028218,2]
[344009907,1733190646664,-500.0,0.00028218,2]
[344009908,1733190646673,-53.9,0.00028218,2]
[344009909,1733190646685,-412.9843129,0.00028218,2]
[344009910,1733190646697,-33.1156871,0.00028218,2]
[344009911,1733190646707,-513.22862151,0.00028218,2]
[344009912,1733190646716,-2189.75570139,0.000285,5]
[344009915,1733191227338,167.378987,0.00013973,2]
[344009930,1733191672058,17260.03912,0.00025999,60]
[344009963,1733191834930,-1545.19875159,0.00019212,2]
[344009964,1733191834941,-1169.27083333,0.0002,2]
[344009965,1733191834951,-273.870219,0.00023926,2]
[344009966,1733191834960,-362.62,0.00024921,10]
[344009967,1733191834970,-302.19,0.00024921,10]
[344009968,1733191834979,-223.68900538,0.00024928,2]
[344009969,1733191834989,-300.0,0.00024928,2]
[344009970,1733191834999,-300.0,0.00024928,2]
[344009971,1733191835009,-1753.37284392,0.00024928,2]
[344009972,1733191835024,-415.00008,0.00024928,2]
[344009973,1733191835035,-2680.0409564,0.00024928,2]
[344009974,1733191835047,-3767.00934571,0.00024928,2]
[344009983,1733191838697,-251.82,0.00024921,10]
[344009985,1733191838712,-13119.18002917,0.00024928,2]
[344009987,1733191838724,-41348.59609966,0.00024928,2]
[344009988,1733191838735,-3581.29576014,0.00024928,2]
[344009989,1733191838990,-10504.504885,0.00024928,2]
[344009991,1733191839000,-500.0,0.0002493,2]
[344009992,1733191839010,-500.0,0.0002493,2]
[344009993,1733191839020,-500.0,0.0002493,2]
[344009994,1733191839030,-500.0,0.0002493,2]
[344009995,1733191839043,-500.0,0.0002493,2]
[344009996,1733191839053,-500.0,0.0002493,2]
[344009997,1733191839063,-500.0,0.0002493,2]
[344009998,1733191839073,-500.0,0.0002493,2]
[344009999,1733191839083,-500.0,0.0002493,2]
[344010000,1733191839094,-500.0,0.0002493,2]
[344010001,1733191839103,-500.0,0.0002493,2]
[344010002,1733191839112,-500.0,0.0002493,2]
[344010003,1733191839121,-500.0,0.0002493,2]
[344010004,1733191839131,-500.0,0.0002493,2]
[344010005,1733191839141,-363.80156714,0.0002493,2]
[344010006,1733191839151,-500.0,0.0002493,2]
[344010007,1733191839161,-500.0,0.0002493,2]
[344010008,1733191839170,-500.0,0.0002493,2]
[344010009,1733191839180,-500.0,0.0002493,2]
[344010010,1733191839190,-500.0,0.0002493,2]
[344010011,1733191839200,-500.0,0.0002493,2]
[344010012,1733191839209,-500.0,0.0002493,2]
[344010013,1733191839220,-500.0,0.0002493,2]
[344010014,1733191839230,-500.0,0.0002493,2]
[344010015,1733191839239,-500.0,0.0002493,2]
[344010016,1733191839248,-500.0,0.0002493,2]
[344010017,1733191839258,-500.0,0.0002493,2]
[344010018,1733191839269,-500.0,0.0002493,2]
[344010019,1733191839280,-458.47043172,0.0002493,2]
[344010020,1733191839290,-500.0,0.0002493,2]
[344010021,1733191839299,-500.0,0.0002493,2]
[344010022,1733191839308,-22179.653555,0.00024931,2]
[344010023,1733191839317,-150.0,0.00025316,2]
[344010024,1733191839326,-2173.0,0.00025316,2]
[344010025,1733191839336,-846.046,0.00025316,2]
[344010026,1733191839345,-150.199,0.00026091,2]
[344010027,1733191839355,-150.179649,0.000265,2]
[344010028,1733191839365,-420.0,0.00027007,2]
[344010029,1733191839374,-198.288172,0.000273,2]
[344010030,1733191839384,-1169.27083333,0.00027397,7]
[344010031,1733191839394,-500.0,0.00027397,7]
[344010032,1733191839403,-500.0,0.00027397,7]
[344010033,1733191839412,-500.0,0.00027397,7]
[344010034,1733191839421,-500.0,0.00027397,7]
[344010035,1733191839431,-250.00768994,0.00027397,7]
[344010036,1733191839440,-504.86944578,0.00027397,7]
[344010037,1733191839450,-500.0,0.00027397,7]
[344010038,1733191839459,-500.0,0.00027397,7]
[344010039,1733191839469,-500.0,0.00027397,7]
[344010040,1733191839479,-553.8137289,0.00027397,7]
[344010041,1733191839488,-500.0,0.00027397,7]
[344010042,1733191839498,-500.0,0.00027397,7]
[344010043,1733191839507,-500.0,0.00027397,7]
[344010044,1733191839517,-500.0,0.00027397,7]
[344010045,1733191839527,-168.0,0.00027397,7]
[344010046,1733191839537,-500.0,0.00027397,7]
[344010047,1733191839546,-539.70546239,0.00027397,7]
[344010048,1733191839555,-507.78807301,0.00027397,7]
[344010049,1733191839565,-228.63812933,0.00027397,7]
[344010050,1733191839575,-500.0,0.00027397,7]
[344010051,1733191839584,-500.0,0.00027397,2]
[344010052,1733191839594,-3007.97,0.00027397,7]
[344010053,1733191839603,-2006.73,0.00027397,7]
[344010054,1733191839613,-500.0,0.00027397,7]
[344010055,1733191839623,-490.27876591,0.00027397,7]
[344010056,1733191839632,-500.0,0.00027397,7]
[344010057,1733191839642,-500.0,0.00027397,7]
[344010058,1733191839652,-500.0,0.00027397,7]
[344010059,1733191839661,-500.0,0.00027397,7]
[344010060,1733191839671,-500.0,0.00027397,7]
[344010061,1733191839680,-500.0,0.00027397,7]
[344010062,1733191839690,-500.0,0.00027397,7]
[344010063,1733191839705,-564.40538495,0.00027397,7]
[344010064,1733191839715,-169.08001787,0.00027397,7]
[344010065,1733191839724,-1504.22,0.00027397,7]
[344010066,1733191839733,-500.0,0.00027397,7]
[344010067,1733191839744,-500.0,0.00027397,7]
[344010068,1733191839754,-420.0,0.00027421,2]
[344010069,1733191839763,-150.0,0.000275,2]
[344010070,1733191839773,-500.0,0.0002767,7]
[344010071,1733191839785,-634.56,0.0002767,7]
[344010072,1733191839794,-500.0,0.0002767,7]
[344010073,1733191839804,-500.0,0.0002767,7]
[344010074,1733191839814,-500.97573058,0.0002767,7]
[344010075,1733191839824,-504.51488989,0.0002767,7]
[344010076,1733191839934,-1186.63,0.0002767,7]
[344010077,1733191839944,-500.0,0.0002767,7]
[344010078,1733191839953,-500.0,0.0002767,7]
[344010079,1733191839963,-500.0,0.0002767,7]
[344010080,1733191839973,-500.0,0.0002767,7]
[344010081,1733191839982,-493.01815106,0.0002767,7]
[344010082,1733191839992,-761.65,0.0002767,7]
[344010083,1733191840002,-71.33766406,0.0002767,7]
[344010091,1733191840884,-768.98233594,0.0002767,7]
[344010092,1733191840894,-500.0,0.00027671,7]
[344010093,1733191840903,-621.09286247,0.00027671,7]
[344010094,1733191840913,-181.02526935,0.00027671,7]
[344010095,1733191840924,-318.97473065,0.00027671,7]
[344010096,1733191840934,-500.0,0.00027671,7]
[344010097,1733191840943,-500.0,0.00027671,7]
[344010098,1733191840953,-500.0,0.00027671,7]
[344010099,1733191840962,-500.0,0.00027671,7]
[344010100,1733191840973,-500.0,0.00027671,7]
[344010101,1733191840982,-419.09211656,0.00027671,7]
[344010123,1733191844011,-500.0,0.00027397,7]
[344010124,1733191844021,-500.0,0.00027397,7]
[344010125,1733191844032,-80.90788344,0.00027671,7]
[344010126,1733191844042,-500.0,0.00027671,7]
[344010127,1733191844052,-618.80173635,0.00027671,7]
[344010128,1733191844062,-168.0,0.00027671,7]
[344010129,1733191844071,-500.0,0.00027671,7]
[344010130,1733191844082,-3007.97,0.00027671,7]
[344010131,1733191844092,-2006.73,0.00027671,7]
[344010132,1733191844101,-500.0,0.00027671,7]
[344010133,1733191844110,-500.0,0.00027671,7]
[344010134,1733191844120,-500.0,0.00027671,7]
[344010135,1733191844130,-500.0,0.00027671,7]
[344010136,1733191844140,-500.0,0.00027671,7]
[344010137,1733191844151,-500.0,0.00027671,7]
[344010138,1733191844161,-500.0,0.00027671,7]
[344010139,1733191844171,-500.0,0.00027671,7]
[344010140,1733191844181,-1504.22,0.00027671,7]
[344010141,1733191844191,-500.0,0.00027671,7]
[344010142,1733191844200,-475.24209913,0.00027671,7]
[344010143,1733191844211,-500.0,0.00027671,7]
[344010144,1733191844221,-413.10961547,0.00027673,5]
[344010145,1733191844231,-187.0,0.000279,2]
[344010146,1733191844241,-634.56,0.00027944,7]
[344010147,1733191844251,-500.0,0.00027944,7]
[344010148,1733191844260,-500.0,0.00027944,7]
[344010149,1733191844271,-1186.63,0.00027944,7]
[344010150,1733191844283,-500.0,0.00027944,7]
[344010151,1733191844293,-500.0,0.00027944,7]
[344010152,1733191844303,-500.0,0.00027944,7]
[344010153,1733191844313,-500.0,0.00027944,7]
[344010154,1733191844323,-761.65,0.00027944,7]
[344010155,1733191844334,-840.32,0.00027944,7]
[344010156,1733191844344,-1169.27083333,0.00027945,7]
[344010157,1733191844354,-1169.27083333,0.00027945,7]
[344010158,1733191844363,-503.1008071,0.00027945,10]
[344010159,1733191844373,-512.05185354,0.00027945,7]
[344010160,1733191844383,-573.91742598,0.00027945,7]
[344010161,1733191844392,-500.0,0.00027945,7]
[344010162,1733191844401,-500.0,0.00027945,7]
[344010163,1733191844411,-500.0,0.00027945,7]
[344010164,1733191844421,-500.0,0.00027945,7]
[344010165,1733191844430,-500.0,0.00027945,7]
[344010166,1733191844440,-500.0,0.00027945,7]
[344010167,1733191844449,-500.0,0.00027945,7]
[344010168,1733191844459,-168.0,0.00027945,7]
[344010169,1733191844469,-425.29220359,0.00027945,7]
[344010170,1733191844478,-3007.97,0.00027945,7]
[344010171,1733191844487,-2006.73,0.00027945,7]
[344010172,1733191844496,-500.0,0.00027945,7]
[344010173,1733191844506,-500.0,0.00027945,7]
[344010174,1733191844515,-500.0,0.00027945,7]
[344010175,1733191844526,-500.0,0.00027945,7]
[344010176,1733191844536,-500.0,0.00027945,7]
[344010177,1733191844546,-500.0,0.00027945,7]
[344010178,1733191844555,-500.0,0.00027945,7]
[344010179,1733191844565,-500.0,0.00027945,7]
[344010180,1733191844574,-1504.22,0.00027945,7]
[344010181,1733191844584,-500.0,0.00027945,7]
[344010182,1733191844594,-500.0,0.00027945,7]
[344010183,1733191844604,-10000.0,0.00028,120]
[344010184,1733191844614,-199.92631936,0.00028217,2]
[344010185,1733191844623,-240.44776245,0.00028217,2]
[344010186,1733191844633,-241.34046266,0.00028217,2]
[344010187,1733191844643,-625.66803008,0.00028217,2]
[344010188,1733191844652,-634.56,0.00028218,7]
[344010189,1733191844662,-500.0,0.00028218,7]
[344010190,1733191844672,-500.0,0.00028218,7]
[344010191,1733191844682,-1186.63,0.00028218,7]
[344010192,1733191844692,-500.0,0.00028218,7]
[344010193,1733191844707,-500.0,0.00028218,7]
[344010194,1733191844721,-500.0,0.00028218,7]
[344010195,1733191844731,-500.0,0.00028218,7]
[344010196,1733191844742,-761.65,0.00028218,7]
[344010197,1733191844753,-840.32,0.00028218,7]
[344010198,1733191844764,-500.0,0.00028219,7]
[344010199,1733191844774,-500.0,0.00028219,7]
[344010200,1733191844785,-336.19972447,0.00028219,7]
[344010201,1733191844795,-500.0,0.00028219,7]
[344010202,1733191844805,-500.0,0.00028219,7]
[344010203,1733191844816,-500.0,0.00028219,7]
[344010204,1733191844826,-500.0,0.00028219,7]
[344010205,1733191844835,-168.0,0.00028219,7]
[344010206,1733191844845,-3007.97,0.00028219,7]
[344010207,1733191844854,-2006.73,0.00028219,7]
[344010208,1733191844865,-495.60540622,0.00028219,7]
[344010209,1733191844875,-500.0,0.00028219,7]
[344010210,1733191844885,-500.0,0.00028219,7]
[344010211,1733191844894,-500.0,0.00028219,7]
[344010212,1733191844904,-500.0,0.00028219,7]
[344010213,1733191844914,-500.0,0.00028219,7]
[344010214,1733191844923,-500.0,0.00028219,7]
[344010215,1733191844933,-500.0,0.00028219,7]
[344010216,1733191844943,-1504.22,0.00028219,7]
[344010217,1733191844953,-500.0,0.00028219,7]
[344010218,1733191844962,-214.37043271,0.00028219,7]
[344010219,1733191844972,-1071.853,0.00028316,2]
[344010220,1733191844981,-925.00985178,0.000284,2]
[344010221,1733191844991,-179.39830275,0.000284,2]
[344010222,1733191845001,-500.0,0.00028473,5]
[344010223,1733191845011,-500.0,0.00028473,5]
[344010224,1733191845020,-634.56,0.00028492,7]
[344010225,1733191845031,-500.0,0.00028492,7]
[344010226,1733191845041,-500.0,0.00028492,7]
[344010227,1733191845051,-1186.63,0.00028492,7]
[344010228,1733191845061,-500.0,0.00028492,7]
[344010229,1733191845071,-400.9060704,0.00028492,7]
[344010230,1733191845085,-99.0939296,0.00028492,7]
[344010231,1733191845096,-500.0,0.00028492,7]
[344010232,1733191845106,-500.0,0.00028492,7]
[344010233,1733191845115,-761.65,0.00028492,7]
[344010234,1733191845125,-840.32,0.00028492,7]
[344010235,1733191845135,-378.07745379,0.00028493,7]
[344010236,1733191845147,-121.92254621,0.00028493,7]
[344010237,1733191845157,-500.0,0.00028493,7]
[344010238,1733191845166,-500.0,0.00028493,7]
[344010239,1733191845176,-500.0,0.00028493,7]
[344010240,1733191845186,-500.0,0.00028493,7]
[344010241,1733191845196,-500.0,0.00028493,7]
[344010242,1733191845206,-168.0,0.00028493,7]
[344010243,1733191845216,-3007.97,0.00028493,7]
[344010244,1733191845226,-2006.73,0.00028493,7]
[344010245,1733191845236,-500.0,0.00028493,7]
[344010246,1733191845246,-500.0,0.00028493,7]
[344010247,1733191845256,-500.0,0.00028493,7]
[344010248,1733191845266,-500.0,0.00028493,7]
[344010249,1733191845276,-500.0,0.00028493,7]
[344010250,1733191845288,-500.0,0.00028493,7]
[344010251,1733191845298,-500.0,0.00028493,7]
[344010252,1733191845308,-1504.22,0.00028493,7]
[344010253,1733191845326,-500.0,0.00028493,7]
[344010254,1733191845347,-233.71849396,0.00028499,2]
[344010255,1733191845367,-3953.20129519,0.000285,2]
[344010263,1733191846903,-500.0,0.00027671,7]
[344010265,1733191846913,-500.0,0.00027945,7]
[344010266,1733191846923,-266.39999,0.00028219,7]
[344010271,1733192197291,167.378987,0.00013973,2]
[344010275,1733192706403,5699.82,0.00026,60]
[344010276,1733192912511,179.2108213,0.00013973,2]
[344010278,1733192945110,-1169.27083333,0.0002,2]
[344010279,1733192945134,-939.14219542,0.0002,2]
[344010280,1733192945161,-3593.96780151,0.00023,2]
[344010281,1733192945183,-300.0,0.00023409,2]
[344010282,1733192945206,-300.0,0.00023409,2]
[344010283,1733192945228,-74829.03834777,0.00023409,2]
[344010284,1733192946256,-36985.96165223,0.00023409,2]
[344010285,1733192946279,-2934.0,0.0002341,2]
[344010286,1733192946303,-6229.341572,0.00023891,2]
[344010287,1733192946325,-239.847244,0.00023897,2]
[344010288,1733192946347,-309.66,0.00024862,10]
[344010289,1733192946369,-258.05,0.00024862,10]
[344010290,1733192946390,-500.0,0.00024871,2]
[344010291,1733192946416,-500.0,0.00024871,2]
[344010292,1733192946438,-500.0,0.00024871,2]
[344010293,1733192946461,-222.14830927,0.00024871,2]
[344010294,1733192946484,-374.79547852,0.00024871,2]
[344010295,1733192946509,-500.0,0.00024871,2]
[344010296,1733192946530,-646.74334583,0.00024871,2]
[344010297,1733192946550,-501.50915682,0.00024871,2]
[344010298,1733192946572,-500.0,0.00024871,2]
[344010299,1733192946594,-500.0,0.00024871,2]
[344010300,1733192946615,-500.0,0.00024871,2]
[344010301,1733192946639,-500.0,0.00024871,2]
[344010302,1733192946661,-391.30334069,0.00024871,2]
[344010303,1733192946682,-518.76124394,0.00024871,2]
[344010304,1733192946704,-399.14841569,0.00024871,2]
[344010305,1733192946725,-504.28298024,0.00024871,2]
[344010306,1733192946747,-500.0,0.00024871,2]
[344010307,1733192946769,-500.0,0.00024871,2]
[344010308,1733192946791,-500.0,0.00024871,2]
[344010309,1733192946813,-500.0,0.00024871,2]
[344010310,1733192946835,-500.0,0.00024871,2]
[344010311,1733192946857,-500.0,0.00024871,2]
[344010312,1733192946879,-603.90193849,0.00024871,2]
[344010313,1733192946903,-500.0,0.00024871,2]
[344010314,1733192946925,-500.0,0.00024871,2]
[344010315,1733192946948,-500.0,0.00024871,2]
[344010316,1733192946971,-500.0,0.00024871,2]
[344010317,1733192946994,-500.0,0.00024871,2]
[344010318,1733192947018,-500.0,0.00024871,2]
[344010319,1733192947041,-500.0,0.00024871,2]
[344010320,1733192947065,-500.0,0.00024871,2]
[344010321,1733192947090,-500.0,0.00024871,2]
[344010322,1733192947114,-500.0,0.00024871,2]
[344010323,1733192947136,-500.0,0.00024871,2]
[344010324,1733192947160,-614.45368566,0.00024871,2]
[344010325,1733192947181,-546.3799321,0.00024885,2]
[344010326,1733192947206,-9066.70122589,0.000249,2]
[344010327,1733192954131,-933.29877411,0.000249,2]
[344010328,1733192954154,-420.0,0.00025401,2]
[344010329,1733192971007,178.93861617,0.0002,2]
[344010350,1733193032906,-1169.27083333,0.0002,2]
[344010351,1733193032916,-300.0,0.00026768,2]
[344010352,1733193032926,-300.0,0.00026768,2]
[344010353,1733193032935,-827.09091946,0.00026769,2]
[344010356,1733193034913,-722.59937,0.00026769,2]
[344010357,1733193034925,-636.82271054,0.00026769,2]
[344010358,1733193034935,-2296.06616772,0.00026769,2]
[344010378,1733193038833,-95.33783228,0.00026769,2]
[344010379,1733193038844,-175.948,0.00026769,2]
[344010380,1733193038855,-92.77490824,0.00026775,2]
[344010404,1733193043981,-9907.22509176,0.00026775,2]
[344010405,1733193043990,-466.0,0.00027,2]
[344010406,1733193043999,-155.0,0.00027,2]
[344010407,1733193044009,-160.23500786,0.00027297,2]
[344010408,1733193044107,-364.25328807,0.00027397,2]
[344010409,1733193044119,-500.0,0.00027397,7]
[344010410,1733193044129,-500.0,0.00027397,7]
[344010411,1733193044139,-500.0,0.00027397,7]
[344010412,1733193044149,-551.13537122,0.00027397,7]
[344010413,1733193044159,-500.0,0.00027397,7]
[344010414,1733193044170,-501.3427183,0.00027397,7]
[344010415,1733193044180,-500.0,0.00027397,7]
[344010416,1733193044190,-500.0,0.00027397,7]
[344010417,1733193044199,-500.0,0.00027397,7]
[344010418,1733193044209,-500.0,0.00027397,2]
[344010419,1733193044218,-528.8,0.00027397,7]
[344010420,1733193044229,-409.74230422,0.00027397,7]
[344010421,1733193044239,-562.91936094,0.00027397,7]
[344010422,1733193044249,-500.0,0.00027397,7]
[344010423,1733193044259,-500.0,0.00027397,7]
[344010424,1733193044269,-505.59877947,0.00027397,7]
[344010425,1733193044278,-260.3157599,0.00027397,7]
[344010426,1733193044288,-500.0,0.00027397,7]
[344010427,1733193044297,-509.87399059,0.00027397,7]
[344010428,1733193044306,-988.86,0.00027397,7]
[344010429,1733193044316,-500.0,0.00027397,7]
[344010430,1733193044326,-507.82036139,0.00027397,7]
[344010432,1733193044336,-500.0,0.00027397,7]
[344010433,1733193044346,-511.31472221,0.00027397,7]
[344010434,1733193044355,-512.02430481,0.00027397,7]
[344010435,1733193044366,-168.0,0.00027397,7]
[344010436,1733193044378,-504.19572524,0.00027397,7]
[344010437,1733193044387,-500.0,0.00027397,7]
[344010438,1733193044396,-500.0,0.00027397,7]
[344010439,1733193044406,-500.0,0.00027397,7]
[344010440,1733193044416,-634.71,0.00027397,7]
[344010441,1733193044426,-2381.31,0.00027397,7]
[344010442,1733193044435,-700.27,0.00027397,7]
[344010443,1733193044445,-1588.66,0.00027397,7]
[344010444,1733193044455,-500.0,0.00027397,7]
[344010445,1733193044465,-263.96691249,0.00027397,7]
[344010446,1733193044476,-500.0,0.00027397,7]
[344010447,1733193044486,-1169.27083333,0.00027397,7]
[344010448,1733193044497,-1169.27083333,0.00027397,7]
[344010449,1733193044507,-500.0,0.00027397,7]
[344010450,1733193044518,-500.0,0.00027397,7]
[344010451,1733193044528,-1190.84,0.00027397,7]